Workbook

Sheet DV
A1: Project Costings Analysis
B2: Annual days | C2: Tax | D2: Project days
A3: Days Worked | B3: 260 | C3: 0.1 | D3: 60
A5: Costs | B5: Ann Salary | C5: Daily Rate | D5: Project Costs
A6: Project Manager | B6: 240000 | C6: =B6/$B$3*(1+IF($B$12="No",0,$C$3)) -> 1015.384615 | D6: =C6*$D$3 -> 60923.07692
A7: Business Analyst | B7: 120000 | C7: =B7/$B$3*(1+IF($B$12="No",0,$C$3)) -> 507.6923077 | D7: =C7*$D$3 -> 30461.53846
A8: Call Centre | B8: 56000 | C8: =B8/$B$3*(1+IF($B$12="No",0,$C$3)) -> 236.9230769 | D8: 14215.38462
A9: Product Development | B9: 220000 | C9: =B9/$B$3*(1+IF($B$12="No",0,$C$3)) -> 930.7692308 | D9: 55846.15385
A10: Total Cost | D10: =SUM(D6:D9) -> 161446.1538
A12: Do these costings include Tax? | B12: Yes

Sheet Combo
F3: 3
E7: Price
D8: Best Case | E8: 120
D9: Base Case | E9: 100
D10: Worst Case | E10: 80

Sheet Scenario Mgr
A1: Budget 20X0
A3: Income | B3: 36000
A5: Expenditure
A6: Mortgage | B6: 18000
A7: Bills | B7: 8000
A8: Travel | B8: 2500
A9: Food | B9: 6000
A10: Total Expenditure | B10: =SUM(B6:B9) -> 34500
A12: Savings | B12: =B3-B10 -> 1500

Sheet Goal Seek
A1: Project Costings Analysis
B2: Annual days | D2: Project days
A3: Days Worked | B3: 260 | D3: 60
A5: Costs | B5: Ann Salary | C5: Daily Rate | D5: Project Costs
A6: Project Manager | B6: 240000 | C6: =B6/$B$3 -> 923.0769231 | D6: =C6*$D$3 -> 55384.61538
A7: Business Analyst | B7: 120000 | C7: =B7/$B$3 -> 461.5384615 | D7: =C7*$D$3 -> 27692.30769
A8: Call Centre | B8: 56000 | C8: 215.3846154 | D8: 12923.07692
A9: Product Development | B9: 220000 | C9: 846.1538462 | D9: 50769.23077
A10: Total Cost | D10: =SUM(D6:D9) -> 146769.2308

Sheet Data Table
A1: INTEREST RATE CALCULATOR
B4: Enter data here: | E4: Sensitivity of Monthly Repayment to one variable
A6: Loan Amount | B6: 350000
D7: Interest Rate | E7: 0.06
A8: Interest Rate | B8: 0.075 | E8: 0.065
E9: 0.07
A10: Term of Loan (Years) | B10: 25 | E10: 0.075
E11: 0.08
A12: Monthly Repayment | B12: =-PMT(B8/12,12*B10,B6) -> 2586.469122 | E12: 0.085
E15: Sensitivity of Monthly Repayment to two variables
F16: Term of Loan
F17: 20 | G17: 25 | H17: 30 | I17: 35
D18: Interest Rate | E18: 0.06
E19: 0.065
E20: 0.07
E21: 0.075
E22: 0.08
E23: 0.085

Sheet BE goal seek
B1: Bob's Bird Cages Break Even Analysis
B3: Fixed Costs | C3: 250275
B4: Variable Costs/ Unit Produced:
B5: Raw Material | C5: 5
B6: Labour | C6: 25
B7: Unit Overheads | C7: 10
B8: Total Variable Cost per Unit | C8: =SUM(C5:C7) -> 40
B9: Selling Price | C9: 125
B11: Cages produced / sold | C11: 5000
B13: Total Revenue | C13: =C9*C11 -> 625000
B14: Total Variable Costs | C14: =C11*C8 -> 200000
B15: Total Cost | C15: =C14+C3 -> 450275
B16: Total Profit/ Loss | C16: =C13-C15 -> 174725

Sheet BE with Macro
B1: Bob's Bird Cages Break Even Analysis
B3: Fixed Costs | C3: 250275
B4: Variable Costs/ Unit Produced:
B5: Raw Material | C5: 5
B6: Labour | C6: 25
B7: Unit Overheads | C7: 10
B8: Total Variable Cost per Unit | C8: =SUM(C5:C7) -> 40
B9: Selling Price | C9: 125
B11: Cages produced / sold | C11: 5000
B13: Total Revenue | C13: =C9*C11 -> 625000
B14: Total Variable Costs | C14: =C11*C8 -> 200000
B15: Total Cost | C15: =C14+C3 -> 450275
B16: Total Profit/ Loss | C16: =C13-C15 -> 174725
